bitfinex/quotes_SOLUSD_20251030
["timestamp","ask_amount","ask_price","bid_price","bid_amount"]
[1761862612296,5.4710581,182.78,182.77,13.6746401]
[1761862612697,6.1810581,182.78,182.77,13.6746401]
[1761862613497,0.71,182.78,182.77,13.6746401]
[1761862614384,0.71,182.78,182.77,15.74607501]
[1761862615718,6.1810581,182.78,182.77,15.74607501]
[1761862615905,6.1810581,182.78,182.77,13.6746401]
[1761862616603,10.27124911,182.78,182.77,13.6746401]
[1761862616792,10.27123013,182.78,182.77,13.6746401]
[1761862617115,6.1810581,182.78,182.77,13.6746401]
[1761862617290,0.71,182.78,182.77,13.6746401]
[1761862619210,6.1810581,182.78,182.77,13.6746401]
[1761862620396,6.1810581,182.78,182.75,2.07143491]
[1761862620591,0.67,182.77,182.76,15.74607501]
[1761862620816,0.67,182.77,182.76,13.6746401]
[1761862621111,12.30190052,182.77,182.76,13.6746401]
[1761862621594,25.98029412,182.77,182.72,8.9624249]
[1761862621804,4.75910817,182.76,182.72,22.637065]
[1761862622313,0.67,182.75,182.72,6.89098999]
[1761862623513,5.47225566,182.74,182.72,6.89098999]
[1761862623901,0.67,182.73,182.72,6.89098999]
[1761862625326,6.14255513,182.73,182.72,6.89098999]
[1761862630517,6.14255513,182.73,182.72,23.34963763]
[1761862631936,0.67,182.73,182.72,23.34963763]
[1761862633429,6.14255513,182.73,182.72,23.34963763]
[1761862633627,6.14226488,182.74,182.72,23.34963763]
[1761862633842,5.47226488,182.74,182.72,23.34963763]
[1761862634138,5.47226488,182.74,182.72,6.89098999]
[1761862634340,5.47226488,182.74,182.73,15.75120493]
[1761862634732,7.54369979,182.74,182.72,6.89098999]
[1761862635038,6.81839723,182.73,182.72,6.89098999]
[1761862635426,13.46168791,182.73,182.72,6.89098999]
[1761862636331,5.47229766,182.74,182.72,10.13316045]
[1761862636719,6.17193973,182.76,182.73,3.24217046]
[1761862636939,5.47193973,182.76,182.75,3.24217046]
[1761862637141,6.17193973,182.76,182.75,3.24217046]
[1761862637345,6.17193973,182.76,182.75,7.57098999]
[1761862640246,10.25205957,182.76,182.75,7.57098999]
[1761862642645,6.17193973,182.76,182.75,7.57098999]
[1761862643233,10.2541697,182.76,182.75,7.57098999]
[1761862643839,13.49634016,182.76,182.75,7.57098999]
[1761862644159,13.49634016,182.76,182.72,6.89098999]
[1761862644160,36.96430989,182.76,182.72,6.89098999]
[1761862644334,4.78222997,182.75,182.72,23.35144374]
[1761862644542,3.24217046,182.73,182.72,6.89098999]
[1761862644923,3.94217046,182.73,182.72,6.89098999]
[1761862645135,9.41472559,182.73,182.72,6.89098999]
[1761862647853,6.17255513,182.73,182.72,6.89098999]
[1761862649262,10.25928548,182.73,182.72,6.89098999]
[1761862649752,13.50145594,182.73,182.72,6.89098999]
[1761862649933,10.25928548,182.73,182.72,6.89098999]
[1761862650133,13.50145594,182.73,182.72,6.89098999]
[1761862652361,10.25928548,182.73,182.72,6.89098999]
[1761862655352,4.08673035,182.73,182.72,7.61098999]
[1761862655745,4.08673035,182.73,182.72,10.13316045]
[1761862655950,4.08673035,182.73,182.72,21.25013203]
[1761862656846,9.55928548,182.73,182.72,21.25013203]
[1761862658843,4.08673035,182.73,182.72,21.25013203]
[1761862659267,9.55928548,182.73,182.72,21.25013203]
[1761862659669,5.47075879,182.79,182.72,25.21230249]
[1761862659866,4.09594831,182.78,182.75,3.24217046]
[1761862660179,4.09594831,182.77,182.74,3.24217046]
[1761862660364,0.68,182.78,182.76,6.15075879]
[1761862660562,4.0968461,182.77,182.76,6.15075879]
[1761862660963,10.24820354,182.77,182.76,6.15075879]
[1761862662795,10.24820354,182.77,182.73,3.24217046]
[1761862662993,4.0968461,182.76,182.74,0.72]
[1761862663174,4.7768461,182.76,182.73,3.24217046]
[1761862663371,4.09962768,182.75,182.73,3.24217046]
[1761862663701,4.09962768,182.75,182.73,19.69810968]
[1761862664273,0.68,182.76,182.73,19.69810968]
[1761862664467,4.10071948,182.75,182.73,19.69810968]
[1761862664673,9.57276651,182.75,182.73,19.69810968]
[1761862664882,5.47204703,182.75,182.73,19.69810968]
[1761862665990,5.47204703,182.75,182.73,3.24217046]
[1761862666182,5.47204703,182.75,182.74,5.47204703]
[1761862666383,9.57260278,182.75,182.74,5.47204703]
[1761862666585,10.25260278,182.75,182.74,5.47204703]
[1761862666980,9.57260278,182.75,182.74,5.47204703]
[1761862667183,4.10055575,182.75,182.74,9.43421749]
[1761862667394,5.47106603,182.78,182.74,9.43421749]
[1761862667695,4.10033954,182.77,182.76,3.24217046]
[1761862668686,4.10033954,182.77,182.76,8.71323649]
[1761862669205,4.09965273,182.77,182.76,8.71323649]
[1761862669400,5.47106603,182.78,182.76,8.71323649]
[1761862669774,5.47106603,182.78,182.76,3.24217046]
[1761862670300,5.47106603,182.78,182.77,8.71323649]
[1761862670477,9.56924352,182.78,182.77,8.71323649]
[1761862670678,9.56924352,182.78,182.75,3.24217046]
[1761862670998,9.56924352,182.78,182.75,11.95540695]
[1761862670999,4.09831992,182.77,182.75,11.95540695]
[1761862671205,4.09831992,182.77,182.75,8.71323649]
[1761862671395,4.09831992,182.77,182.74,3.96217046]
[1761862671596,4.09831992,182.77,182.75,6.15106603]
[1761862671777,10.24989827,182.77,182.75,6.15106603]
[1761862671978,6.15157835,182.77,182.75,6.15106603]
[1761862672474,5.47157835,182.77,182.75,6.15106603]
[1761862672889,5.47157835,182.77,182.75,9.39323649]
[1761862673402,5.47157835,182.77,182.75,3.24217046]
[1761862673597,5.47157835,182.77,182.76,13.67678591]
[1761862673981,9.5686634,182.77,182.76,13.67678591]
[1761862674389,9.5686634,182.77,182.76,17.63895637]
[1761862674390,4.09708505,182.77,182.76,17.63895637]
[1761862674706,13.67466202,182.82,182.76,23.11054206]
[1761862674893,4.09638754,182.81,182.79,3.24217046]
[1761862675085,0.78,182.86,182.8,3.24217046]
[1761862675295,4.09585122,182.85,182.83,3.24217046]
[1761862675490,4.09585122,182.84,182.83,3.24217046]
[1761862676296,9.56496976,182.85,182.83,7.33802168]
[1761862676586,4.09585122,182.84,182.83,7.33802168]
[1761862676782,6.24874402,182.86,182.83,7.33802168]
[1761862676985,6.24874402,182.86,182.84,3.96217046]
[1761862676986,4.09167284,182.85,182.84,3.96217046]
[1761862677288,0.1,182.86,182.84,3.96217046]
[1761862677607,0.1,182.86,182.85,3.96217046]
[1761862678515,0.1,182.86,182.85,3.24217046]
[1761862679692,0.1,182.86,182.83,10.26534408]
[1761862679693,0.1,182.86,182.84,3.24217046]
[1761862680117,0.1,182.86,182.85,3.24217046]
[1761862681625,0.76,182.86,182.84,3.24217046]
[1761862681789,0.1,182.86,182.84,3.24217046]
[1761862682607,0.76,182.86,182.82,5.46979993]
[1761862682791,0.76,182.86,182.85,6.12811071]
[1761862683196,0.1,182.86,182.85,6.12811071]
[1761862685120,6.22866455,182.86,182.85,6.12811071]
[1761862685323,6.22866455,182.86,182.83,0.7]
[1761862685324,0.1,182.86,182.83,0.7]
[1761862685638,0.1,182.86,182.85,3.24217046]
[1761862686014,0.1,182.86,182.84,3.24217046]
[1761862686532,0.1,182.86,182.85,9.37040879]
[1761862687237,0.1,182.86,182.85,6.12823833]
[1761862689814,0.1,182.86,182.85,9.37040879]
[1761862690121,0.1,182.86,182.85,6.12823833]
[1761862690442,6.22866455,182.86,182.85,6.12823833]
[1761862691715,0.76,182.86,182.85,6.12823833]
[1761862691938,0.1,182.86,182.85,9.37040879]
[1761862693237,0.1,182.86,182.85,6.12823833]
[1761862696640,0.1,182.86,182.85,15.51937242]
[1761862697431,0.1,182.86,182.85,76.04713412]
[1761862698035,0.1,182.87,182.85,85.83596181]
[1761862698232,0.1,182.87,182.86,2.74993216]
[1761862698624,0.1,182.87,182.86,10.41067781]
[1761862699029,0.1,182.89,182.88,20.592]
[1761862699234,0.1,182.91,182.89,9.78882769]
[1761862699529,0.1,182.91,182.9,32.45075985]
[1761862699728,0.1,182.91,182.9,35.32224046]
[1761862700248,1e-08,182.91,182.9,35.6065636]
[1761862700455,0.7,183.01,182.91,30.38082769]
[1761862700658,0.7,183.01,182.91,33.13075985]
[1761862700845,0.1,183.02,182.92,0.96432314]
[1761862701153,0.1,183.02,183.01,2.06993216]
[1761862701356,0.1,183.02,183.0,2.06993216]
[1761862701529,0.1,183.02,182.99,2.06993216]
[1761862701732,0.1,183.02,182.99,7.53324914]
[1761862701933,0.8,183.02,182.99,7.53324914]
[1761862702344,8.33381675,183.02,182.96,2.06993216]
[1761862702549,6.26388459,183.02,182.97,2.06993216]
[1761862702742,0.7,183.01,182.97,2.06993216]
[1761862703045,6.16447006,183.01,182.97,2.06993216]
[1761862703244,0.7,183.01,182.98,2.06993216]
[1761862703437,0.7,183.0,182.97,2.06993216]
[1761862705044,6.16459904,183.0,182.97,2.06993216]
[1761862707344,6.16459904,183.0,182.98,6.16459904]
[1761862708235,5.46418228,183.01,182.98,6.16459904]
[1761862708451,0.7,182.99,182.98,6.16459904]
[1761862708852,0.7,182.99,182.94,20.592]
[1761862709046,0.7,182.99,182.94,2.06993216]
[1761862709649,0.7,182.99,182.96,5.46418228]
[1761862710248,5.46507815,182.98,182.93,2.06993216]
[1761862710446,5.46507815,182.98,182.95,6.18661582]
[1761862710659,0.68,182.97,182.95,6.18661582]
[1761862711548,6.14565311,182.97,182.95,6.18661582]
[1761862712160,0.68,182.96,182.95,6.18661582]
[1761862712659,6.14567555,182.96,182.95,6.18661582]
[1761862715364,0.68,183.0,182.95,8.97654798]
[1761862715677,0.68,183.0,182.96,2.06993216]
[1761862716162,0.68,183.0,182.96,17.90017301]
[1761862716569,0.68,183.0,182.94,5.4660284]
[1761862716768,0.68,183.0,182.97,15.83024085]
[1761862718173,5.46477949,182.99,182.97,15.83024085]
[1761862718544,0.68,182.98,182.97,15.83024085]
[1761862720254,6.14507815,182.98,182.93,2.06993216]
[1761862720638,2.74993216,182.97,182.95,15.73038787]
[1761862720931,2.06993216,182.96,182.88,2.06993216]
[1761862721136,2.06993216,182.96,182.91,15.73038787]
[1761862721137,2.06993216,182.94,182.91,15.73038787]
[1761862721572,0.68,182.93,182.91,15.73038787]
[1761862722069,6.14684722,182.93,182.91,15.73038787]
[1761862722971,0.68,182.92,182.91,15.73038787]
[1761862723274,5.46627309,182.94,182.91,15.73038787]
[1761862723576,6.14627309,182.94,182.91,15.73038787]
[1761862723778,0.68,182.93,182.91,15.73038787]
[1761862725258,5.46687076,182.92,182.91,15.73038787]
[1761862725785,6.14661035,182.93,182.91,15.73038787]
[1761862726085,0.68,182.93,182.91,15.73038787]
[1761862726253,0.68,183.0,182.94,20.592]
[1761862726454,0.68,183.0,182.97,2.06993216]
[1761862726878,0.68,183.0,182.98,5.46420443]
[1761862727263,5.46477949,182.99,182.98,5.46420443]
[1761862727659,6.14477949,182.99,182.92,0.72]
[1761862727882,0.68,182.98,182.94,2.06993216]
[1761862728081,0.68,182.98,182.97,5.46420443]
[1761862728785,6.14507815,182.98,182.97,5.46420443]
[1761862734289,0.68,183.01,182.97,7.53413659]
[1761862734588,0.68,183.0,182.97,7.53413659]
[1761862734785,0.68,183.0,182.96,2.06993216]
[1761862734986,0.68,183.0,182.98,13.65944928]
[1761862736186,5.46477949,182.99,182.98,13.65944928]
[1761862737669,6.14454162,183.0,182.98,13.65944928]
[1761862737868,15.8302779,183.02,182.98,16.44938144]
[1761862737869,5.56408279,183.02,182.98,16.44938144]
[1761862738100,6.24408279,183.02,182.99,2.06993216]
[1761862738464,6.24408279,183.02,183.0,18.50243565]
[1761862738465,0.1,183.02,183.0,18.50243565]
[1761862738685,0.1,183.02,183.01,2.06993216]
[1761862740706,0.1,183.02,183.01,2.73993216]
[1761862740936,0.1,183.02,183.01,8.20411444]
[1761862741399,0.1,183.02,183.01,69.90411444]
[1761862741603,0.1,183.02,183.01,90.49611444]
[1761862741914,0.1,183.05,183.04,20.592]
[1761862742075,0.1,183.05,183.04,23.33193216]
[1761862742279,0.1,183.05,183.04,28.79521887]
[1761862744908,0.72,183.17,183.08,20.592]
[1761862745084,0.72,183.17,183.05,9.78882769]
[1761862745085,2.06993216,183.11,183.04,5.46158918]
[1761862745280,2.06993216,183.11,182.99,4.53861286]
[1761862745281,2.06993216,183.09,183.03,2.06993216]
[1761862745504,2.06993216,183.06,183.03,5.46158918]
[1761862745896,2.06993216,183.04,183.03,5.46158918]
[1761862746303,2.78993216,183.04,183.03,5.46158918]
[1761862746608,0.72,183.04,183.03,5.46158918]
[1761862747292,0.72,183.04,183.01,2.06993216]
[1761862747699,6.18342377,183.04,183.02,5.46158918]
[1761862747889,6.18342377,183.04,183.02,7.53152134]
[1761862748309,4.58687686,183.13,183.05,20.592]
[1761862748491,0.72,183.13,183.1,2.06993216]
[1761862748693,0.72,183.16,183.12,2.06993216]
[1761862748898,0.72,183.16,183.15,2.06993216]
[1761862749214,0.1,183.18,183.15,2.06993216]
[1761862749215,0.82,183.18,183.15,2.06993216]
[1761862749416,0.82,183.18,183.15,4.0742277]
[1761862749417,2.06993216,183.17,183.15,4.0742277]
[1761862749594,21.1789079,183.16,183.07,5.46211633]
[1761862749792,2.06993216,183.09,183.08,6.27935609]
[1761862750011,2.06993216,183.09,183.01,2.06993216]
[1761862750012,5.51319028,183.09,183.01,2.06993216]
[1761862750211,8.27972864,183.15,182.89,1.99999999]
[1761862750212,4.21621,183.11,183.08,2.06993216]
[1761862750516,12.57875985,183.15,183.09,2.06993216]
[1761862750697,12.57875985,183.15,183.04,26.87135609]
[1761862750698,2.06993216,183.11,183.06,2.06993216]
[1761862751108,0.72,183.1,183.07,2.06993216]
[1761862751313,0.72,183.1,183.08,2.06993216]
[1761862751513,0.72,183.13,183.09,2.06993216]
[1761862751713,6.18089995,183.12,183.09,2.06993216]
[1761862752221,0.72,183.11,183.09,2.06993216]
[1761862752923,0.72,183.11,183.08,11.85875985]
[1761862753126,5.46149645,183.1,183.07,2.06993216]
[1761862753619,0.72,183.09,183.07,13.92869201]
[1761862754625,0.72,183.11,183.08,2.06993216]
[1761862754793,0.72,183.11,183.09,2.06993216]
[1761862754992,0.72,183.11,183.1,2.06993216]
[1761862755827,6.18148263,183.11,183.1,2.06993216]
[1761862756396,6.18088733,183.13,183.1,2.06993216]
[1761862756598,0.72,183.12,183.1,2.06993216]
[1761862757415,0.72,183.12,183.1,3.22622515]
[1761862757624,5.45970735,183.16,183.11,3.91622515]
[1761862757930,0.72,183.15,183.13,3.22622515]
[1761862758142,0.72,183.15,183.12,3.22622515]
[1761862758829,5.45970735,183.16,183.14,3.22622515]
[1761862759028,5.45970735,183.16,183.13,3.22622515]
[1761862759202,0.72,183.15,183.11,16.87701598]
[1761862759395,0.72,183.15,183.12,3.22622515]
[1761862759806,5.46030359,183.14,183.09,3.22622515]
[1761862760006,5.46030359,183.14,183.1,3.22622515]
[1761862760301,0.72,183.13,183.11,5.45970735]
[1761862760939,0.72,183.13,183.07,0.69]
[1761862761236,3.94622515,183.13,183.09,5.45970735]
[1761862761821,6.18089995,183.12,183.09,5.45970735]
[1761862762023,6.18089995,183.12,183.09,8.6859325]
[1761862762937,6.18089995,183.12,183.09,3.22622515]
[1761862763099,6.18089995,183.12,183.1,8.6859325]
[1761862763302,5.46089995,183.12,183.1,8.6859325]
[1761862764037,5.46060175,183.13,183.1,11.91215765]
[1761862764210,6.18060175,183.13,183.1,11.91215765]
[1761862764604,6.18060175,183.13,183.1,3.22622515]
[1761862765034,0.72,183.12,183.04,82.292]
[1761862765341,0.72,183.12,183.04,82.982]
[1761862765342,3.94622515,183.12,183.04,82.982]
[1761862765528,3.22622515,183.1,183.0,61.7]
[1761862765728,3.22622515,183.05,182.98,0.69]
[1761862765912,5.46328671,183.04,182.99,3.22622515]
[1761862766105,6.18328671,183.04,182.99,3.22622515]
[1761862766444,19.84150349,183.04,182.99,3.91622515]
[1761862767329,5.46328671,183.04,183.0,8.63169564]
[1761862767629,5.46328671,183.04,183.01,8.63169564]
[1761862767943,5.46305845,183.05,183.01,8.63169564]
[1761862768446,5.46305845,183.05,183.02,8.65169564]
[1761862768641,6.15209307,183.08,183.03,7.94169564]
[1761862768823,5.46209307,183.08,183.05,7.94169564]
[1761862769818,0.69,183.07,183.02,7.94169564]
[1761862770019,0.69,183.07,183.01,7.94169564]
[1761862770020,13.40438546,183.06,183.01,7.94169564]
[1761862770441,0.69,183.05,183.01,7.94169564]
[1761862772063,5.46328671,183.04,183.01,7.94169564]
[1761862773140,6.15328671,183.04,183.01,7.94169564]
[1761862773318,0.69,183.03,183.0,7.94169564]
[1761862773835,5.46328671,183.04,183.0,7.94169564]
[1761862774022,19.81150349,183.04,183.0,7.94169564]
[1761862774226,19.81150349,183.04,183.0,8.65169564]
[1761862774634,0.69,183.03,183.0,7.94169564]
[1761862776045,6.15388019,183.03,183.0,7.94169564]
[1761862778157,6.15388019,183.03,183.0,8.65169564]
[1761862779041,5.46388019,183.03,183.0,8.65169564]
[1761862779248,19.12150349,183.04,183.0,8.65169564]
[1761862779435,19.81150349,183.04,183.0,8.65169564]
[1761862781055,27.06319913,183.04,182.98,61.7]
[1761862781265,0.69,183.03,182.99,7.94169564]
[1761862781765,5.46388372,183.02,182.99,8.65169564]
[1761862783353,5.46388372,183.02,182.99,7.94169564]
[1761862783545,5.46388372,183.02,183.0,0.71]
[1761862784151,5.46388372,183.02,182.99,7.94169564]
[1761862784355,5.46388372,183.02,182.99,8.65169564]
[1761862786566,0.69,183.02,182.99,8.65169564]
[1761862787460,0.69,183.02,182.97,61.7]
[1761862787659,3.23023154,183.01,182.95,3.23023154]
[1761862787859,3.23023154,183.01,182.93,67.1665089]
[1761862787860,3.23023154,182.99,182.93,3.23023154]
[1761862788062,3.23023154,182.98,182.93,3.94023154]
[1761862788448,3.92023154,182.99,182.94,0.71]
[1761862788650,5.46507815,182.98,182.94,0.71]
[1761862788846,5.46471334,183.0,182.96,3.23023154]
[1761862789053,4.58687686,183.08,182.96,3.23023154]
[1761862789054,0.69,183.05,182.99,3.23023154]
[1761862789256,0.69,183.05,183.0,3.23023154]
[1761862789453,0.69,183.06,183.02,3.23023154]
[1761862789653,0.69,183.06,183.03,3.23023154]
[1761862790175,5.46298825,183.05,183.03,3.23023154]
[1761862790349,5.46298825,183.05,183.02,3.23023154]
[1761862790539,0.69,183.06,183.0,0.71]
[1761862790540,0.69,183.08,183.04,3.23023154]
[1761862790744,4.77040724,183.08,183.04,3.23023154]
[1761862790945,4.77040724,183.08,183.05,3.23023154]
[1761862791145,0.69,183.08,183.05,3.23023154]
[1761862791578,27.30248856,183.14,183.0,67.16444048]
[1761862791579,0.69,183.11,183.06,3.23023154]
[1761862791870,0.69,183.11,183.07,3.23023154]
[1761862792042,5.46149645,183.1,183.08,3.23023154]
[1761862792243,5.46149645,183.1,183.07,3.23023154]
[1761862792448,5.46149645,183.1,183.08,3.23023154]
[1761862793146,6.15110554,183.12,183.08,3.94023154]
[1761862793359,6.15110554,183.12,183.08,8.6449666]
[1761862793577,6.15110554,183.12,183.09,7.9349666]
[1761862795052,0.69,183.11,183.09,7.9349666]
[1761862796178,5.46149645,183.1,183.08,7.9349666]
[1761862798779,5.46115684,183.12,183.09,7.9349666]
[1761862798977,6.17115684,183.12,183.09,7.9349666]
[1761862799178,6.17115684,183.12,183.1,7.9349666]
[1761862799482,5.46115684,183.12,183.1,7.9349666]
[1761862799654,19.1121966,183.13,183.1,7.9349666]
[1761862799849,19.8221966,183.13,183.1,7.9349666]
[1761862800149,0.71,183.12,183.1,7.9349666]
[1761862800971,0.71,183.12,183.09,7.9349666]
[1761862801571,0.71,183.12,183.06,62.36]
[1761862801572,7.9349666,183.1,183.06,61.7]
[1761862801784,4.0804101,183.09,183.04,7.9349666]
[1761862801988,0.71,183.08,183.04,7.9349666]
[1761862802192,0.71,183.08,183.03,7.9349666]
[1761862802367,0.71,183.08,183.03,8.5949666]
[1761862802693,0.71,183.08,183.04,7.9349666]
[1761862803581,5.46239143,183.07,183.03,8.5949666]
[1761862803983,6.17239143,183.07,183.03,8.5949666]
[1761862804152,19.11837001,183.07,183.03,7.9349666]
[1761862804356,0.71,183.06,183.03,7.9349666]
[1761862804762,21.58941008,183.1,183.04,7.9349666]
[1761862804961,4.79363052,183.09,183.04,8.5949666]
[1761862805178,23.90991212,183.09,183.04,8.5949666]
[1761862805371,4.79363052,183.08,183.05,7.9349666]
[1761862805684,0.71,183.08,183.05,7.9349666]
[1761862805872,19.82423482,183.11,183.06,8.5949666]
[1761862806065,4.08414486,183.1,183.07,7.9349666]
[1761862806562,0.71,183.09,183.06,7.9349666]
[1761862807580,0.71,183.09,183.05,7.9349666]
[1761862807775,5.46209307,183.08,183.04,7.9349666]
[1761862807981,0.71,183.07,183.04,7.9349666]
[1761862808182,0.71,183.09,183.05,8.5949666]
[1761862808499,0.71,183.09,183.05,7.9349666]
[1761862808500,0.71,183.08,183.05,7.9349666]
[1761862808867,0.71,183.08,183.02,61.7]
[1761862809194,0.71,183.08,183.0,21.252]
[1761862809195,12.02056995,183.07,183.01,7.9349666]
[1761862809393,4.08560335,183.06,183.01,7.9349666]
[1761862809562,4.79560335,183.06,183.01,7.9349666]
[1761862809764,5.46328671,183.04,183.01,8.5949666]
[1761862810119,5.46300519,183.05,183.03,7.9349666]
[1761862810684,6.17300519,183.05,183.02,8.5949666]
[1761862811789,6.17357866,183.04,183.02,7.9349666]
[1761862812082,6.17357866,183.04,183.0,61.7]
[1761862812291,6.17357866,183.04,182.98,7.9349666]
[1761862812292,8.6449666,183.03,182.98,7.9349666]
[1761862812497,7.9349666,183.02,182.97,7.9349666]
[1761862812673,0.71,183.01,182.97,7.9349666]
[1761862813069,0.71,183.01,182.96,7.9349666]
[1761862813295,0.71,183.01,182.96,3.2313049]
[1761862813497,3.2313049,183.0,182.95,3.2313049]
[1761862813896,5.46448087,183.0,182.96,3.2313049]
[1761862814082,5.46448087,183.0,182.96,3.8913049]
[1761862814281,19.12568305,183.0,182.96,3.2313049]
[1761862814500,0.71,182.99,182.95,3.2313049]
[1761862814988,0.71,182.99,182.94,3.2313049]
[1761862815793,0.71,182.99,182.94,3.9213049]
[1761862815794,5.46507815,182.98,182.94,3.9213049]
[1761862815993,5.46507815,182.98,182.95,3.2313049]
[1761862816176,5.46507815,182.98,182.96,3.2313049]
[1761862816973,5.46507815,182.98,182.95,3.2313049]
[1761862817384,5.46507815,182.98,182.95,2.06829103]
[1761862817596,6.13507815,182.98,182.94,2.75829103]
[1761862818511,6.13507815,182.98,182.95,2.06829103]
[1761862818877,5.46507815,182.98,182.95,2.75829103]
[1761862819072,5.4648414,182.99,182.95,2.06829103]
[1761862819296,5.46388372,183.02,182.97,2.06829103]
[1761862819798,6.13388372,183.02,182.98,0.69]
[1761862820002,7.53217475,183.02,182.97,2.06829103]
[1761862820213,0.67,183.01,182.97,2.06829103]
[1761862820383,5.46448087,183.0,182.97,2.06829103]
[1761862820587,5.46448087,183.0,182.96,63.76829103]
[1761862820884,5.46448087,183.0,182.96,64.45829103]
[1761862821601,5.46448087,183.0,182.97,2.06829103]
[1761862821775,6.13448087,183.0,182.96,62.39]
[1761862821980,6.13448087,183.0,182.96,64.45829103]
[1761862822488,0.67,182.99,182.96,61.7]
[1761862823305,2.73829103,182.99,182.96,61.7]
[1761862823594,2.73829103,182.99,182.94,2.75829103]
[1761862823792,0.67,182.98,182.94,2.75829103]
[1761862824586,5.46537683,182.97,182.94,2.75829103]
[1761862824782,5.46514811,182.98,182.95,2.75829103]
[1761862825181,6.13461389,183.0,182.96,0.69]
[1761862825603,6.13461389,183.0,182.95,2.06829103]
[1761862825604,0.67,182.99,182.95,2.06829103]
[1761862825818,0.67,182.99,182.95,2.75829103]
[1761862826026,0.67,182.99,182.95,2.06829103]
[1761862826305,0.67,182.99,182.95,2.75829103]
[1761862827413,5.46507815,182.98,182.95,2.75829103]
[1761862829613,5.46507815,182.98,182.96,0.66]
[1761862830125,5.46507815,182.98,182.95,2.06829103]
[1761862830301,5.46507815,182.98,182.95,2.72829103]
[1761862832312,5.46507815,182.98,182.96,2.06829103]
[1761862833012,5.46485658,182.99,182.97,0.66]
[1761862833205,19.12568305,183.0,182.97,2.72829103]
[1761862833911,19.12568305,183.0,182.98,0.66]
[1761862834114,5.46448087,183.0,182.98,0.66]
[1761862834318,20.592,183.06,182.98,62.36]
[1761862834319,5.4635852,183.03,182.98,62.36]
[1761862834499,7.53187623,183.03,182.98,61.7]
[1761862834814,0.7,183.02,182.98,61.7]
[1761862835002,0.7,183.02,182.98,62.36]
[1761862835206,3.97297597,183.07,182.98,62.36]
[1761862835207,13.65757741,183.05,182.99,2.72829103]
[1761862835393,16.42586844,183.05,183.0,2.06829103]
[1761862835591,2.76829103,183.04,182.99,2.72829103]
[1761862836114,0.7,183.04,183.0,2.72829103]
[1761862837314,5.4635852,183.03,183.0,0.66]
[1761862838114,5.4635852,183.03,183.0,2.72829103]
[1761862840500,19.82150349,183.04,183.0,2.72829103]
[1761862840896,5.46307329,183.05,183.01,2.72829103]
[1761862841095,5.46307329,183.05,183.03,2.06829103]
[1761862841501,5.46274623,183.06,183.03,2.72829103]
[1761862842121,6.16274623,183.06,183.03,2.72829103]
[1761862843531,6.16274623,183.06,183.03,0.66]
[1761862844499,5.46274623,183.06,183.03,0.66]
[1761862844699,0.7,183.06,183.03,2.72829103]
[1761862846000,5.46298825,183.05,183.03,2.72829103]
[1761862846723,5.46298825,183.05,183.03,0.66]
[1761862847631,19.11837001,183.07,183.03,2.72829103]
[1761862847811,19.81837001,183.07,183.03,2.72829103]
[1761862847995,19.81837001,183.07,183.04,0.66]
[1761862848195,19.81837001,183.07,183.04,2.72829103]
[1761862848427,0.7,183.06,183.03,2.06829103]
[1761862848606,19.81837001,183.07,183.02,2.72829103]
[1761862849128,19.81837001,183.07,183.03,0.66]
[1761862850422,19.81837001,183.07,183.01,2.06829103]
[1761862850423,2.76829103,183.06,183.01,2.06829103]
[1761862850625,2.06829103,183.05,183.0,64.42829103]
[1761862850820,2.06829103,183.04,183.0,61.7]
[1761862851020,2.76829103,183.04,183.0,61.7]
[1761862851222,0.7,183.03,183.0,61.7]
[1761862851813,5.46388372,183.02,183.0,61.7]
[1761862852812,5.46388372,183.02,182.99,2.72829103]
[1761862853433,0.7,183.03,182.99,0.66]
[1761862853612,19.12158804,183.04,182.99,2.72829103]
[1761862853613,0.7,183.02,182.99,2.72829103]
[1761862854511,5.46418228,183.01,182.99,0.66]
[1761862854841,5.46418228,183.01,182.97,2.06829103]
[1761862855020,6.16418228,183.01,182.97,2.72829103]
[1761862855413,6.16418228,183.01,182.98,0.66]
[1761862855950,5.46418228,183.01,182.98,2.72829103]
[1761862856126,6.16382849,183.03,182.99,2.06829103]
[1761862856319,0.7,183.02,182.99,2.72829103]
[1761862856514,6.16415126,183.02,182.99,2.72829103]
[1761862856711,6.16415126,183.02,182.96,82.292]
[1761862857043,6.16415126,183.02,182.98,2.06829103]